Cogmind - Beta 16 @@@ ROGUE MODE // 2026.01.30 @ 02:28:25 Player: Assis Result: Self-destructed Performance ------------- Evolutions (2) 1000 Regions Visited (3) 600 Robots Destroyed (66) 330 Value Destroyed (1516) 1516 Prototype IDs (0) 0 Alien Tech Used (0) 0 Bonus (0) 0 TOTAL SCORE: 3446 Bonus ------- None Cogmind --------- Core Integrity 308/550 Matter 214/300 Energy 100/100 System Corruption 0% Temperature Cool (9) Movement Walking (190) Ox1 Location -8/Materials Parts ------- > --- POWER (1) -------- (None) > --- PROPULSION (2) --- Carbon-fiber Leg Carbon-fiber Leg > --- UTILITY (6) ------ High-capacity Storage Unit Trap Scanner Visual Processing Unit Terrain Scan Processor > --- WEAPON (2) ------- Gauss Rifle > --- INVENTORY (20) --- Ion Engine Ion Engine Light Treads Advanced Treads VTOL Module VTOL Module VTOL Module VTOL Module Trap Scanner Improved Targeting Computer Improved Targeting Computer ECM Suite Light Armor Plating Hardened Light Armor Plating Mini Grenade Launcher Mace Mace Mace Peak State ------------ > --- POWER ------------ Improved Ion Engine > --- PROPULSION ------- Carbon-fiber Leg Carbon-fiber Leg > --- UTILITY ---------- High-capacity Storage Unit Trap Scanner Visual Processing Unit Improved Terrain Scanner Terrain Scan Processor > --- WEAPON ----------- Gauss Rifle > --- INVENTORY -------- Ion Engine Ion Engine Light Treads Advanced Treads VTOL Module VTOL Module VTOL Module VTOL Module Trap Scanner Improved Targeting Computer Improved Targeting Computer ECM Suite Light Armor Plating Hardened Light Armor Plating Mini Grenade Launcher Mace Mace Mace [Rating: 26] Favorites ----------- Power Ion Engine Engine Ion Engine Propulsion Light Treads Treads Light Treads Leg Carbon-fiber Leg Utility Terrain Scan Processor Device Improved Terrain Scanner Storage Small Storage Unit Processor Terrain Scan Processor Weapon Assault Rifle Energy Gun Particle Gun Ballistic Gun Assault Rifle Launcher Mini Grenade Launcher Impact Weapon Mace Build | -11 -10 -9 -8 ------- Run | Yrd Mat Mat Mat Slots Evolved 4 | . . 2 2 Power . | . . . . Propulsion . | . . . . Utility 4 | . . 2 2 Weapon . | . . . . Parts Attached 47 | 8 8 24 7 Power 10 | 2 2 6 . Engine 10 | 2 2 6 . Core . | . . . . Reactor . | . . . . Propulsion 11 | 2 1 5 3 Treads 9 | 2 1 5 1 Leg 2 | . . . 2 Wheel . | . . . . Hover . | . . . . Flight . | . . . . Utility 10 | 2 . 5 3 Device 6 | 1 . 3 2 Storage 2 | 1 . 1 . Processor 2 | . . 1 1 Hackware . | . . . . Protection . | . . . . Artifact . | . . . . Weapon 16 | 2 5 8 1 Energy Gun 2 | 1 1 . . Energy Cannon . | . . . . Ballistic Gun 12 | 1 4 6 1 Ballistic Cannon . | . . . . Launcher 1 | . . 1 . Special Weapon . | . . . . Impact Weapon 1 | . . 1 . Slashing Weapon . | . . . . Piercing Weapon . | . . . . Special Melee Weapon . | . . . . Unidentified Prototypes . | . . . . Parts Lost 14 | . 2 6 6 Power 1 | . . . 1 Propulsion 5 | . 1 3 1 Utility 5 | . 1 2 2 Weapon 3 | . . 1 2 Highest Loss Streak 5 | . 2 2 5 To Critical Strikes . | . . . . Average Backups 11 | . 7 14 17 Power 1 | . . 1 2 Propulsion 4 | . 3 4 5 Utility 3 | . 2 4 6 Weapon 2 | . . 3 4 Tool/Special . | . . . . Unused Backups 15 | . . 3 12 Power 2 | . . 2 . Propulsion 4 | . . . 4 Utility 6 | . . . 6 Weapon 3 | . . 1 2 Tool/Special . | . . . . Average Slot Usage (%) 91 | . 88 94 91 Engine 11 | . 13 10 8 Treads 20 | . 22 19 11 Device 16 | . 10 19 26 Storage 11 | . 14 11 9 Processor 7 | . . 10 17 Energy Gun 1 | . 3 . . Ballistic Gun 17 | . 22 13 17 Impact Weapon 3 | . . 7 . Peak Build Rating 26 | 7 9 19 26 Average Rating 13 | 5 7 16 23 On Entrance 7 | . 7 6 16 Avg Prop Armor Cover (%) 12 | . . . 12 Naked Turns . | . . . . Heaviest Build 61 | 15 16 61 57 Greatest Support 42 | 40 40 40 42 Greatest Overweight (x) 3 | 1 . 2 3 Average Overweight (x) . | . . . 1 Largest Inventory Capacity 20 | 8 8 20 20 Average Capacity 13 | 7 8 17 20 Most Carried 20 | 2 8 20 19 Average Carried 11 | . 7 14 17 Final Capacity 20 | 8 8 20 20 Final Carried 20 | 2 8 20 18 Class Distribution -------------------- 45% | Scavenger-Mutant 39% | Mutant 14% | Scavenger-Skirmisher Dominant Class ---------------- Mutant | -10/Materials Scavenger-Mutant | -9/Materials Scavenger-Skirmisher | -8/Materials Resources | -11 -10 -9 -8 ----------- Run | Yrd Mat Mat Mat Matter Collected 1555 | 295 410 751 99 Remotely . | . . . . Salvage Created 2085 | 138 819 985 143 Parts 131 | 12 40 71 8 Haulers Intercepted 2 | . 1 1 . Recyclers Shooed 4 | . 1 2 1 Parts Field Recycled . | . . . . Retrieved Matter . | . . . . Parts Self-Destructed . | . . . . Prevented . | . . . . Parts Restored . | . . . . Kills | -11 -10 -9 -8 ------- Run | Yrd Mat Mat Mat Combat Hostiles Destroyed 42 | . 17 22 3 Guns 40 | . 17 20 3 AOE 2 | . . 2 . Classes Destroyed 12 | 3 6 2 1 Worker 7 | 1 2 4 . Builder 4 | . 1 3 . Tunneler 6 | 5 1 . . Hauler 2 | . 1 1 . Recycler 3 | 1 1 1 . Operator 1 | . 1 . . Watcher 1 | . 1 . . Swarmer 11 | . 3 8 . Grunt 20 | . 14 6 . Duelist 1 | . . 1 . Sentry 7 | . . 7 . Hunter 3 | . . . 3 Best Kill Streak 7 | 6 6 7 1 Combat Bots Only 6 | . 5 6 1 Max Kills in Single Turn 2 | 2 2 2 1 Gunslinging 1 | . 1 . . Exploded 1 | . . 1 . Melee . | . . . . Uniques/NPCs Destroyed . | . . . . Combat | -11 -10 -9 -8 -------- Run | Yrd Mat Mat Mat Hostile Shots Fired 298 | . 78 147 73 Missed 74 | . 23 40 11 Hits 224 | . 55 107 62 Melee 1 | . . 1 . Projectile 223 | . 55 106 62 Critical Strikes 4 | . 2 1 1 Damage Taken 2944 | . 614 1400 930 Core 577 | . 111 224 242 Absorbed by Shields . | . . . . Core Remaining (%) 66 | 100 55 44 . Volleys Fired 222 | 5 74 119 24 Largest 2 | 2 2 2 2 Hottest 85 | 70 85 53 46 Shots Fired 319 | 10 135 137 37 Gun 315 | 10 135 133 37 Cannon . | . . . . Launcher 4 | . . 4 . Special . | . . . . Kinetic 285 | 5 110 133 37 Thermal 30 | 5 25 . . Explosive 4 | . . 4 . Electromagnetic . | . . . . Robot Hit Streak 16 | 4 11 16 8 Robot Miss Streak 4 | 1 3 4 1 Penetration Max . | . . . . Secondary Targets 2 | . 1 . 1 Max Gunslinging Chain 1 | . 1 . 1 Shots Hit Robots 225 | 6 92 99 28 Core Hits 103 | 6 37 50 10 Critical Kills . | . . . . Critical Parts Destroyed 2 | . . 1 1 Critical Strikes 3 | . 1 1 1 Burn 1 | . 1 . . Destroy 1 | . . . 1 Smash 1 | . . 1 . Melee Attacks 8 | . . 8 . Impact 8 | . . 8 . Slashing . | . . . . Piercing . | . . . . Sneak Attacks 1 | . . 1 . Combat Hostiles . | . . . . Follow-up Attacks . | . . . . Damage Inflicted 3628 | 105 1208 1952 363 Guns 3138 | 105 1208 1462 363 Cannons . | . . . . Explosions 384 | . . 384 . Melee 97 | . . 97 . Ramming 9 | . . 9 . Kinetic 2818 | 55 938 1462 363 Thermal 431 | 50 270 111 . Explosive 273 | . . 273 . Electromagnetic . | . . . . Impact 97 | . . 97 . Slashing . | . . . . Piercing . | . . . . Highest Corruption 1 | . . 1 . Average Corruption 1 | . . 1 . Corruption Purged . | . . . . Corruption Blocked . | . . . . Effects 12 | . . 12 . Message Errors 2 | . . 2 . Matter Fused 4 | . . 4 . Heat Flow Errors 2 | . . 2 . Parts Rejected 1 | . . 1 . Data Loss (minor) 1 | . . 1 . Data Loss (major) 1 | . . 1 . Misfires 1 | . . 1 . Overload Shots . | . . . . Overflow Damage 137 | . . 137 . Projectiles . | . . . . Explosions 59 | . . 59 . Melee 78 | . . 78 . Knockbacks . | . . . . Impact . | . . . . Kinetic . | . . . . Secondary . | . . . . Self-Inflicted Damage 112 | . . 112 . Shots 1 | . . 1 . Rammed 6 | . . 6 . Targets Rammed 7 | 1 . 6 . Kicked . | . . . . Crushed 1 | 1 . . . Highest Temperature 282 | 45 282 192 7 Average Temperature 65 | 23 108 27 5 Received Heat Transfer 945 | . 354 312 279 Siege Activations . | . . . . Martial Activations . | . . . . Shielding Activations . | . . . . Robots Disrupted . | . . . . Combat Hostiles . | . . . . Robots Corrupted . | . . . . Combat Hostiles . | . . . . Parts Fried 3 | . . 3 . Impact Corruptions 2 | . . 2 . Robots Melted . | . . . . Combat Hostiles . | . . . . Parts Melted 1 | . 1 . . Heat Transferred 901 | 148 703 50 . Parts Sabotaged . | . . . . Parts Stolen . | . . . . Parts Stripped . | . . . . Power Chain Reactions . | . . . . Alert | -11 -10 -9 -8 ------- Run | Yrd Mat Mat Mat Maximum Alert Level 1 | . . 1 . Low Security (%) 87 | 100 100 75 100 Level 1 12 | . . 24 . Level 2 . | . . . . Level 3 . | . . . . Level 4 . | . . . . Level 5 . | . . . . High Security . | . . . . Max Security . | . . . . Peak Influence 366 | 20 182 366 139 Initial 139 | . 3 48 139 Average 84 | 5 61 107 59 Influence Increases 1461 | 35 499 837 90 Destroy 0b10 Robot/C 840 | . 340 440 60 Destroy 0b10 Robot/NC 120 | 35 40 45 . Destroy Leader 226 | . 74 122 30 Successful Hack 22 | . 14 8 . Disable Machine 75 | . . 75 . Destroy Structure 43 | . 1 42 . Partial Spotted 15 | . . 15 . Lose Combat Pursuer 120 | . 30 90 . Influence Decreases 1461 | 30 388 622 421 Entered New Map 262 | . 2 68 192 Time Decay 1079 | 30 366 504 179 Lost Part 120 | . 20 50 50 Squads Dispatched 10 | . 6 4 . Investigation 6 | . 4 2 . Extermination . | . . . . Reinforcement 4 | . 2 2 . Assault . | . . . . Garrison . | . . . . Intercept . | . . . . Searches Triggered . | . . . . Construction Impeded . | . . . . Haulers Reinforced . | . . . . Active Scanning Responses . | . . . . Cargo Convoy Interrupts . | . . . . Stealth | -11 -10 -9 -8 --------- Run | Yrd Mat Mat Mat Distress Signals 4 | . 2 1 1 Communications Jammed . | . . . . Distress Signals . | . . . . Times Spotted 63 | . 26 30 7 Peak Tracking Total 6 | . 6 6 4 Tactical Retreats 4 | . 2 2 . Traps | -11 -10 -9 -8 ------- Run | Yrd Mat Mat Mat Traps Triggered 7 | . 5 2 . Indirectly . | . . . . Trap Hack Attempts . | . . . . Triggered . | . . . . Disarmed . | . . . . Reprogrammed . | . . . . Reused . | . . . . Traps Extracted . | . . . . Installed . | . . . . Triggered . | . . . . Machines | -11 -10 -9 -8 ---------- Run | Yrd Mat Mat Mat Machines Disabled 5 | . . 5 . Max in Single Turn 2 | . . 2 . Machines Repaired . | . . . . Machines Dismantled . | . . . . Machines Sabotaged . | . . . . Overloaded Fab Kills . | . . . . Hacking | -11 -10 -9 -8 --------- Run | Yrd Mat Mat Mat Machines Accessed 10 | . 4 6 . Terminals 9 | . 4 5 . Fabricators . | . . . . Repair Stations . | . . . . Recycling Units . | . . . . Scanalyzers 1 | . . 1 . Garrison Access . | . . . . Total Hacks 28 | . 12 16 . Successful 7 | . 3 4 . Failed 21 | . 9 12 . Catastrophic 5 | . 1 4 . Database Lockouts . | . . . . Manual 25 | . 12 13 . Terminals 25 | . 12 13 . Fabricators . | . . . . Repair Stations . | . . . . Recycling Units . | . . . . Scanalyzers 3 | . . 3 . Garrison Access . | . . . . Terminal Hacks 4 | . 3 1 . Terminal Index 2 | . 1 1 . Hauler Manifests 1 | . 1 . . Registered Components 1 | . 1 . . Fabricator Hacks . | . . . . Repair Station Hacks . | . . . . Recycling Unit Hacks . | . . . . Scanalyzer 3 | . . 3 . Retrieve Study 3 | . . 3 . Garrison Access Hacks . | . . . . Unauthorized Hacks . | . . . . Terminals . | . . . . Fabricators . | . . . . Repair Stations . | . . . . Recycling Units . | . . . . Scanalyzers . | . . . . Garrison Access . | . . . . Data Cores Recovered . | . . . . Used . | . . . . Hacking Detections 10 | . 4 6 . Full Trace Events 4 | . 2 2 . Feedback Events . | . . . . Feedback Blocked . | . . . . Robot Schematics Acquired . | . . . . Robots Built . | . . . . Authchips . | . . . . Time . | . . . . Total Robot Build Rating . | . . . . Part Schematics Acquired . | . . . . Parts Built . | . . . . Authchips . | . . . . Time . | . . . . Total Part Build Rating . | . . . . Part Studies Acquired 3 | . . 3 . Parts Repaired . | . . . . Time . | . . . . Parts Recycled . | . . . . Recycled Matter . | . . . . Retrieved Matter . | . . . . Retrieved Components . | . . . . Parts Scanalyzed . | . . . . Part Schematics Acquired . | . . . . Parts Damaged . | . . . . Bothacking | -11 -10 -9 -8 ------------ Run | Yrd Mat Mat Mat Used RIF Installer . | . . . . Robots Hacked . | . . . . Non-combat . | . . . . Combat . | . . . . Robot Hacks Applied . | . . . . Relay Couplers Released . | . . . . Fabnet Peak Effective % . | . . . . Robots Rewired . | . . . . Allies Hacked . | . . . . Hacks Repelled . | . . . . Allies | -11 -10 -9 -8 -------- Run | Yrd Mat Mat Mat Total Allies . | . . . . Largest Group . | . . . . Highest-Rated Group . | . . . . Highest-Rated Ally . | . . . . Total Orders . | . . . . Ally Attacks . | . . . . Total Damage . | . . . . Kills . | . . . . Allies Corrupted . | . . . . Allies Melted . | . . . . Intel | -11 -10 -9 -8 ------- Run | Yrd Mat Mat Mat Active Infowar (turns) 3773 | 28 1151 2214 380 Optics 378 | . . . 378 Terrain 2581 | . . 2213 368 Structural 670 | . . 310 360 Traps 379 | . . . 379 Seismic 1179 | 28 1151 . . Robot Analysis Total . | . . . . Derelict Logs Recovered . | . . . . Drone Launches . | . . . . Drone Recoveries . | . . . . Exploration | -11 -10 -9 -8 ------------- Run | Yrd Mat Mat Mat Turns Passed 4276 | 100 1582 2214 380 Spaces Moved 1787 | 54 811 810 112 Core 14 | 14 . . . Treads 1769 | 40 811 810 108 Legs 4 | . . . 4 Wheels . | . . . . Hover . | . . . . Flight . | . . . . Fastest Speed 50 | 50 160 160 190 Average Speed 194 | 133 160 223 271 Slowest Speed 330 | 160 160 320 330 Overloaded Moves . | . . . . Propulsion Burnouts . | . . . . Robots Hopped . | . . . . Potential Cave-ins . | . . . . Cave-ins Triggered . | . . . . Exploration Rate (%) 34 | 3 80 50 6 Regions Visited 3 Branch Regions . Pre-discovered Areas . | . . . . Known Exits Taken . | . . . . Unknown Exits Taken 3 | 1 1 1 . Scrap Searched . | . . . . Spaces Dug 12 | . . 12 . Terrain Destroyed 40 | . . 40 . Melee 6 | . . 6 . Projectile . | . . . . AOE 34 | . . 34 . Terrain Rammed . | . . . . Walls Destroyed . | . . . . Machines Disabled . | . . . . Actions | -11 -10 -9 -8 --------- Run | Yrd Mat Mat Mat Total 2249 | 68 960 1070 151 Wait 130 | . 56 67 7 Move 1785 | 54 810 809 112 Hop . | . . . . Pick Up 24 | 1 7 16 . Fast Attach 20 | 7 4 6 3 Attach 10 | . . 7 3 Detach 3 | . . 3 . Swap 22 | 1 5 14 2 Drop 19 | . 4 15 . Fire 222 | 5 74 119 24 Melee 8 | . . 8 . Ram . | . . . . Kick . | . . . . Crush 6 | . . 6 . Escape Stasis . | . . . . Rewire . | . . . . Trap . | . . . . Miscellaneous . | . . . . Route ------- -11/Scrapyard -10/Materials (discovered 4 exits: *Mat x3 / [*Min]) -9/Materials -8/Materials History --------- Turn | Location | Event 9 | -11/Scrapyard | Discovered new exit (range 15) 101 | -11/Scrapyard | Entered Materials 311 | -10/Materials | Build established: Mutant 482 | -10/Materials | Discovered new exit (range 16) 655 | -10/Materials | Discovered new exit (range 16) 988 | -10/Materials | Discovered new exit (range 14) 1158 | -10/Materials | Discovered new exit (range 7) 1683 | -10/Materials | Entered another Materials area 1683 | -9/Materials | Evolved 2 slots: Utility x2 2290 | -9/Materials | Build established: Scavenger-Mutant 2485 | -9/Materials | Discovered new exit (range 11) 3551 | -9/Materials | Core integrity fell below 50% 3897 | -9/Materials | Entered another Materials area 3897 | -8/Materials | Evolved 2 slots: Utility x2 4191 | -8/Materials | Build established: Scavenger-Skirmisher 4277 | -8/Materials | Self-destructed Last Messages --------------- 04214_ K-01 Serf collects debris. 04218_ Penetrated by Slug. 04220_ H-55 Commando destroyed. 04220_ Switching to secondary target: H-55 Commando. 04229_ Penetrated by Slug. 04237_ Hvy. Assault Rifle+ destroyed. 04241_ H-55 Commando destroyed. 04243_ Acquired Carbon-fiber Leg. 04245_ Acquired 40 matter. 04245_ Critical hit (Burn: +37). 04252_ Autogun destroyed. 04257_ Structural Scanner destroyed. 04259_ Acquired Gauss Rifle. 04261_ Slug penetrates Wall. 04263_ Imp. Ion Engine destroyed. 04263_ Slug penetrates G-47 Trooper. 04265_ Imp. Terrain Scanner destroyed. 04265_ Slug penetrates G-47 Trooper. 04271_ Slug penetrates Wall. 04273_ Slug penetrates G-47 Trooper. Map ----- +----------------------------------------------------+ | ####### #### ? ???? ??????????????????????? | | #######+#### ? """? ??????????????????????? | | ##! ## ? """????????????????????????? | | ## ] ## ??????????????????????? | | ## ###?## ? ?? ??????????????????????? | | ## """ ###### ?????????????????????? | | ## """""###### ??????????????????????? | | ## """""##?### ""???????????????????????? | | ## """""###??# ? """???????????????????????? | | ## """ ###### ???"??"? ???????????????????? | | ## ####"" ""???? ???????????????????? | | ########+#####"T ??"" ? ???????????????????? | | ##### ##"" ? ??????????????????? | | ##### #### ??????????????????? | | #?### #### ?? ?????????????????? | | ?##### #### ? ????????????????? | | ###### #### ?????#????????????? | | ###### #### " " ? ? ##??????????????? | | ##?### #### "G" ??#???????????????? | | ###### " ##??????????????? | | ###### ???????????????? | | ###### ?? ???????????? | | ##########+#######"Y"### ? ## ????????? | | ?#### = ##"""### ? #####?????????? | | ##### ########! ??????? | | ##### """ """ g ! @%ggg ??????? | | ##### """ """ ############## ??????? | | ##### """ """ ############## ??????????????? | | ##### # ? ? ?##? ? #???????????? | | ##### ! # ? ??##?? ????????????? | | ################# """ """?#### ??#???????????? | | ############ # """ """ ?### ??????????????? | | ??###??#??##? ?#?""" """ #### ?????????????? | | ?#####?####? ??+ ?"? """ ?##????????????????? | | ??########## ? # ?"" """ ?##? ??????????????? | | ???####?###?# ## ? #?##? ?????????????? | | #??###??####? ###########?##????????????????? | | ?#?#??####?## ##########?##?????????????????? | | ?????###?#### ?? ? ?? ??????????????????? | | # ?? ? ?##?## ?? ??? ?? ????????????????? | | ???????? ???? ? ? ?????????????????????? | | ??"?? ?????????#####???#?????????????????????? | | ????"??+???#???????#?????????????????????????? | | ????????? ???##??????????????????????????????? | | ??????????????????#??????????????????????????? | | ?????????????????????????????????????????????? | | ?????????????????????????????????????????????? | | ?????????????????????????????????????????????? | | ?????????????????????????????????????????????? | | ?????????????????????????????????????????????? | +----------------------------------------------------+ Best States ------------- Heat Dissipation 31 Energy Generation 12 Energy Capacity 265 Matter Stores 300 Matter Capacity 300 Sight Range 18 Terrain Scan Range 16 Terrain Scan Density 85 Evasion (%) 50 Recoil Reduction 2 Item Schematics ----------------- None Robot Schematics ------------------ None Fabricated ------------ Nothing Repaired ---------- Nothing Studied --------- VTOL Module | -9/Materials | Hacked Hvy. Assault Rifle | -9/Materials | Hacked Mace | -9/Materials | Hacked Alien Tech Used ----------------- None Achievements -------------- None Challenges ------------ None Game ------ Seed MissileCoolingMembrane Manual? 0 Play Time 00:22:24 Cumulative 31.5 hours Start 2026.01.30 @ 02:06:57 End 2026.01.30 @ 02:28:25 Sessions 1 Manual Loads 0 Difficulty Rogue Special Mode None Game No. 67 Rogue 67 Adventurer 0 Explorer 0 Win Type - Total 0 Types 0/0/0/0/0/0/0/0/0/0 Lore% 16 Gallery% 23 Achievement% 19 Wizard Run 0 Options --------- Layout 0 ASCII 0 Keyboard 1 Movement Arrows Keybinds 0 Fullscreen 1 Font 18/Smallcaps Map View 38x25 Zoom Use 95% Tactical HUD 1 Map Filters NONE Filters NONE Steam 1 RUN: 659ebba6-31d0-46d3-98bf-fc953f907685